[Event "GCT Superbet Blitz Poland 2025"]
[Site "Warsaw"]
[Date "2025.04.28"]
[Round "1"]
[White "Gavrilescu, David"]
[Black "Aravindh, Chithambaram VR."]
[Result "1/2-1/2"]
[ECO "B51"]
[WhiteElo "2554"]
[BlackElo "2749"]
[Annotator "RC"]
[PlyCount "103"]
[EventDate "2025.??.??"]
[EventType "blitz"]
[TimeControl "300+2"]

1. e4 {[%emt 0:00:02]} c5 {[%emt 0:00:02]} 2. Nf3 {[%emt 0:00:02]} d6 {[%emt 0:00:02]} 3. Bb5+ {[%emt 0:00:03]} Nc6 {[%emt 0:00:04]} 4. O-O {[%emt 0:00:04]} Bd7 {[%emt 0:00:02]} 5. Re1 {[%emt 0:00:25]} Nf6 {[%emt 0:00:08]} 6. c3 {[%emt 0:00:03]} a6 {[%emt 0:00:01]} 7. Bf1 {[%emt 0:00:03]} Bg4 {[%emt 0:00:09]} 8. h3 {[%emt 0:00:02]} Bxf3 {[%emt 0:00:12]} 9. Qxf3 {[%emt 0:00:02]} g6 {[%emt 0:00:03]} 10. Qd1 {[%emt 0:00:24]} e5 {[%emt 0:01:22]} 11. Na3 {[%emt 0:00:19]} Bg7 {[%emt 0:00:03]} 12. Nc2 {[%emt 0:00:48]} O-O {[%emt 0:00:04]} 13. d4 {[%emt 0:00:26]} cxd4 {[%emt 0:00:39]} 14. cxd4 {[%emt 0:00:02]} exd4 {[%emt 0:00:17]} 15. Nxd4 {[%emt 0:00:02]} Nxd4 {[%emt 0:00:03]} 16. Qxd4 {[%emt 0:00:02]} Re8 {[%emt 0:00:02]} 17. Qb4 {[%emt 0:00:12]} d5 {[%emt 0:01:18]} 18. exd5 {[%emt 0:00:19]} Rxe1 {[%emt 0:00:07]} 19. Qxe1 {[%emt 0:00:02]} Nxd5 {[%emt 0:00:02]} 20. Bc4 $146 {[%emt 0:01:08]} ({RR} 20. Qd1 Rc8 21. a3 Qd6 22. Rb1 Qe6 23. Qe2 Qb6 24. Qe4 Qd4 25. Qxd4 Bxd4 26. Bd3 f5 27. Bd2 Kf7 28. Rc1 Rxc1+ 29. Bxc1 Kf6 30. Kf1 Ke5 31. g3 Nf6 32. Bc4 Ne4 33. f4+ Kd6 34. Kg2 b5 {Minsky,A (2268)-Savitskiy,S (2333) Moscow 2015 ½-½ (53)}) 20... b5 {[%emt 0:00:02]} 21. Bb3 {[%emt 0:00:06]} a5 {[%emt 0:00:01]} 22. a4 {[%emt 0:00:06]} bxa4 {[%emt 0:00:08]} 23. Bxd5 {[%emt 0:00:20]} Qxd5 {[%emt 0:00:03]} 24. Rxa4 {[%emt 0:00:02]} h5 {[%emt 0:00:29]} 25. Bd2 {[%emt 0:00:07]} Qb3 {[%emt 0:00:23]} 26. Rxa5 {[%emt 0:00:08]} Rd8 {[%emt 0:00:02]} 27. Ra1 {[%emt 0:00:25]} Qxb2 {[%emt 0:00:02]} 28. Bg5 {[%emt 0:00:03]} Rf8 {[%emt 0:00:05]} 29. Rb1 {[%emt 0:00:03]} Qc2 {[%emt 0:00:01]} 30. h4 {[%emt 0:00:03]} Qf5 {[%emt 0:00:02]} 31. Rb3 {[%emt 0:00:01]} Ra8 {[%emt 0:00:02]} 32. Rb1 {[%emt 0:00:04]} Bd4 {[%emt 0:00:02]} 33. Rd1 {[%emt 0:00:03]} Bc5 {[%emt 0:00:02]} 34. Qe2 {[%emt 0:00:05]} Bf8 {[%emt 0:00:02]} 35. g3 {[%emt 0:00:02]} Qc8 {[%emt 0:00:03]} 36. Re1 {[%emt 0:00:01]} Qd7 {[%emt 0:00:01]} 37. Qf3 {[%emt 0:00:02]} Re8 {[%emt 0:00:01]} 38. Rxe8 {[%emt 0:00:02]} Qxe8 {[%emt 0:00:01]} 39. Kg2 {[%emt 0:00:01]} Bg7 {[%emt 0:00:02]} 40. Be3 {[%emt 0:00:02]} Qe6 {[%emt 0:00:02]} 41. Qb7 {[%emt 0:00:01]} Qf5 {[%emt 0:00:02]} 42. Qc6 {[%emt 0:00:02]} Qe6 {[%emt 0:00:03]} 43. Qxe6 {[%emt 0:00:01]} fxe6 {[%emt 0:00:01]} 44. Kf3 {[%emt 0:00:02]} Kf7 {[%emt 0:00:01]} 45. Ke4 {[%emt 0:00:02]} Bf8 {[%emt 0:00:03]} 46. Bf4 {[%emt 0:00:03]} Bc5 {[%emt 0:00:02]} 47. f3 {[%emt 0:00:01]} Bf2 {[%emt 0:00:03]} 48. Be5 {[%emt 0:00:02]} Be1 {[%emt 0:00:02]} 49. Kd3 {[%emt 0:00:03]} Bf2 {[%emt 0:00:03]} 50. Ke4 {[%emt 0:00:03]} Be1 {[%emt 0:00:01]} 51. Kd3 {[%emt 0:00:01]} Bf2 {[%emt 0:00:01]} 52. Ke4 {[%emt 0:00:00]} 1/2-1/2

[Event "GCT Superbet Blitz Poland 2025"]
[Site "Warsaw"]
[Date "2025.04.29"]
[Round "2"]
[White "Praggnanandhaa R"]
[Black "Aronian, Levon"]
[Result "0-1"]
[ECO "D00"]
[WhiteElo "2758"]
[BlackElo "2747"]
[Annotator "TA"]
[PlyCount "92"]
[EventDate "2025.??.??"]
[EventType "blitz"]
[TimeControl "300+2"]

{[%evp 9,91,22,45,33,37,43,70,59,54,43,111,103,129,113,120,118,133,130,116,41,52,34,45,30,52,39,31,11,19,22,41,0,3,-8,-3,-13,-30,-16,0,-55,-6,-24,0,0,0,0,0,0,0,-47,0,0,0,0,0,-20,-20,-72,-26,-52,0,-86,-89,-95,-94,-110,-122,-99,-105,-125,-112,-120,-70,-93,-107,-174,-158,-202,-186,-182,-234,-1065,-978,-29994]} 1. d4 {[%emt 0:00:01]} d5 {[%emt 0:00:01]} 2. c3 {[%emt 0:00:03]} Nf6 {[%emt 0:00:12]} 3. Bf4 {[%emt 0:00:02]} Nh5 {[%emt 0:00:13]} 4. Bg5 {[%emt 0:00:45][%cal Bf4g5,Bg5h4,Bh4g3][%mdl 32]} h6 {[%emt 0:00:02]} 5. Bh4 {[%emt 0:00:02]} g5 {[%emt 0:00:12]} 6. e3 $1 {[%emt 0:00:10] D00: 1 d4 d5: Unusual lines.} Nf6 {[%emt 0:00:01]} 7. Bg3 {[%emt 0:00:01]} Bf5 $146 {[%emt 0:00:23]} (7... Bg7 8. Bd3 O-O 9. Nd2 Nbd7 10. Ngf3 c5 11. h4 g4 12. Ne5 cxd4 13. exd4 Re8 {1-0 Have,D (1964)-Jean,R (1851) Montreal Mercredi 02 2017 (1)}) ({RR} 7... Ne4 8. Be5 Rg8 9. f3 Nd6 10. Bd3 f6 11. Bg3 Nf5 12. Bxf5 Bxf5 13. Qb3 b6 14. Nd2 Nc6 15. e4 Be6 16. Ne2 Na5 17. Qa4+ Bd7 18. Qc2 Bb5 19. e5 Qd7 20. Qh7 Qe6 21. a4 Bxe2 22. Kxe2 {Schindler,G (1851)-Stanivukovic,D (2036) Vienna 2011 0-1}) ({RR} 7... Bg7 8. Bd3 O-O 9. Nd2 Nbd7 10. Ngf3 c5 11. h4 g4 12. Ne5 cxd4 13. exd4 Re8 14. h5 Nf8 15. f3 Qb6 16. Rb1 gxf3 17. gxf3 N6d7 18. f4 Qe6 19. Qf3 Nxe5 20. dxe5 Qg4 21. Qf2 f6 22. f5 {Have,D (1964)-Jean,R (1851) Montreal 2017 1-0 (34)}) 8. Qb3 {[%emt 0:00:01] White is slightly better.} b6 {[%emt 0:00:21]} 9. Nf3 {[%emt 0:00:19]} Ne4 {[%emt 0:00:38]} (9... Bg7 $14) 10. c4 {[%emt 0:00:28]} Nxg3 {[%emt 0:00:21]} 11. hxg3 {[%emt 0:00:02]} e6 {[%emt 0:00:01]} 12. Nc3 {[%emt 0:00:37]} c6 {[%emt 0:00:01]} 13. cxd5 {[%emt 0:00:19]} exd5 {[%emt 0:00:01] [#]} 14. Ne5 {[%emt 0:00:01]} (14. e4 $1 $16 {[%cal Re4f5]}) 14... Bg7 $14 {[%emt 0:00:12]} 15. Bd3 {[%emt 0:00:07]} Bxd3 {[%emt 0:00:19]} 16. Nxd3 {[%emt 0:00:03]} Nd7 {[%emt 0:00:23]} 17. Rc1 {[%emt 0:00:03]} O-O {[%emt 0:00:26]} 18. O-O {[%emt 0:00:02]} Re8 {[%emt 0:00:05]} 19. Ne2 {[%emt 0:00:21]} Re6 {[%emt 0:00:07]} 20. g4 {[%emt 0:00:36]} Nf6 {[%emt 0:00:44]} 21. Ne5 {[%emt 0:00:01] [#]} c5 {[%emt 0:00:01]} 22. Ng3 {[%emt 0:00:16]} (22. Qd3 Ne4) 22... Ne4 {[%emt 0:00:01]} 23. Nxe4 {[%emt 0:00:47]} dxe4 {[%emt 0:00:01]} 24. Rfd1 {[%emt 0:00:01]} (24. f4 $11 exf3 (24... cxd4 $2 25. Nxf7 Kxf7 26. f5 $18) 25. Rxf3 Bxe5 (25... cxd4 $2 26. Nxf7 Qe7 27. Rc7 $18) 26. dxe5) 24... Bxe5 {[%emt 0:00:02]} (24... Qe8 $15) 25. dxe5 $11 {[%emt 0:00:01]} Qe7 {[%emt 0:00:01]} 26. Qd5 {[%emt 0:00:08][%csl Ba8,Be4]} Re8 {[%emt 0:00:01]} 27. Qxe4 {[%emt 0:00:02]} Rxe5 {[%emt 0:00:01]} 28. Qa4 {[%emt 0:00:06]} Re4 {[%emt 0:00:08]} 29. Qc6 {[%emt 0:00:08]} (29. Rc4 $11 {might be stronger.}) 29... Re6 {[%emt 0:00:09]} (29... Qe6 $1 $15 30. Rd6 Qxa2) 30. Qd7 {[%emt 0:00:01]} Kg7 {[%emt 0:00:12]} 31. Rc3 {[%emt 0:00:13]} Re4 {[%emt 0:00:15]} 32. Ra3 {[%emt 0:00:01]} a5 {[%emt 0:00:05]} 33. Qf5 {[%emt 0:00:11]} (33. Rb3 $11) 33... Rb4 {[%emt 0:00:09]} (33... Qe6 $17 34. Rd7 Qxf5 35. gxf5 Rb4) 34. Rd2 {[%emt 0:00:07]} Qe6 {[%emt 0:00:03]} (34... Rd8 $15 35. Rxd8 Qxd8) 35. Rad3 {[%emt 0:00:03]} (35. Qxe6 $11 Rxe6 36. f3) 35... Rxg4 $17 {[%emt 0:00:04]} 36. Qxe6 {[%emt 0:00:02]} Rxe6 {[%emt 0:00:01][%mdl 4096] Endgame KRR-KRR. Black is a pawn up.} 37. b3 {[%emt 0:00:01]} a4 {[%emt 0:00:01]} 38. f3 {[%emt 0:00:02]} Rb4 {[%emt 0:00:01]} 39. Kf2 {[%emt 0:00:01]} axb3 {[%emt 0:00:03]} 40. axb3 {[%emt 0:00:00]} g4 {[%emt 0:00:04] Black is more active.} ({Better is} 40... Re7 $17 41. Ra2 h5) 41. Ra2 {[%emt 0:00:02]} h5 {[%emt 0:00:04]} 42. Ra7 {[%emt 0:00:05]} (42. Kg3 $17 {is a better defense.}) 42... h4 $19 {[%emt 0:00:01] and ...c4 would now be decisive} 43. e4 {[%emt 0:00:01]} c4 {[%emt 0:00:07]} 44. bxc4 {[%emt 0:00:03] [#]} Rb2+ $1 {[%emt 0:00:00]} ({Not} 44... Rxc4 45. Rdd7 Rf6 46. e5 $11) 45. Kf1 $2 {[%emt 0:00:02]} (45. Ke3 Rxg2 46. Rdd7) 45... h3 {[%emt 0:00:01]} 46. fxg4 {[%emt 0:00:02]} h2 {[%emt 0:00:03] Weighted Error Value: White=0.49/Black=0.13 (very precise) Mistake: 	White=7 	Black=6 Inaccurate: 	White=3 	Black=1 OK: 	White=8 	Black=13 Best: 	--- 	Black=5 Strong: 	--- 	Black=1} (46... Rxg2 47. Rxh3 Rxg4 48. Rf3 $11) 0-1

[Event "GCT Superbet Blitz Poland 2025"]
[Site "Warsaw"]
[Date "2025.04.29"]
[Round "2"]
[White "Aravindh, Chithambaram VR."]
[Black "Fedoseev, Vladimir"]
[Result "0-1"]
[ECO "C42"]
[WhiteElo "2749"]
[BlackElo "2739"]
[Annotator "RC"]
[PlyCount "108"]
[EventDate "2025.??.??"]
[EventType "blitz"]
[TimeControl "300+2"]

1. e4 {[%emt 0:00:02]} e5 {[%emt 0:00:01]} 2. Nf3 {[%emt 0:00:02]} Nf6 {[%emt 0:00:01]} 3. Nxe5 {[%emt 0:00:03]} d6 {[%emt 0:00:01]} 4. Nf3 {[%emt 0:00:03]} Nxe4 {[%emt 0:00:01]} 5. Bd3 {[%emt 0:00:02]} Nf6 {[%emt 0:00:02]} 6. O-O {[%emt 0:00:03]} Be7 {[%emt 0:00:02]} 7. Re1 {[%emt 0:00:02]} O-O {[%emt 0:00:02]} 8. Bf1 {[%emt 0:00:03]} d5 {[%emt 0:00:03]} ({RR} 8... Re8 9. d4 Nbd7 10. c4 Nf8 11. Nc3 Ng6 12. h3 c6 13. d5 cxd5 14. Nxd5 Nxd5 15. Qxd5 Bf6 16. Bg5 Be6 17. Bxf6 Qxf6 18. Qxb7 Nf4 19. Rad1 Rab8 20. Qc6 Rec8 21. Qxd6 Rxb2 22. Re4 Ng6 23. Qa3 {Grischuk,A (2766)-Giri,A (2782) Leuven 2018 ½-½ (59)}) 9. d4 {[%emt 0:00:03]} c5 {[%emt 0:00:01]} ({RR} 9... Nc6 10. Ne5 Nxe5 11. dxe5 Ne4 12. Be3 Bf5 13. Bd3 Bg6 14. Nd2 Re8 15. Nxe4 dxe4 16. Bc4 Bf8 17. Bf4 c6 18. Qe2 Qb6 19. c3 Rad8 20. h4 h5 21. b4 Be7 22. Bg3 a5 23. a3 Kh7 24. Kh2 {Agmanov,Z (2469)-Radeva,V (2303) Prague CZE 2025 1-0 (58)}) 10. Bg5 {[%emt 0:00:11]} h6 $146 {[%emt 0:00:28]} ({RR} 10... Be6 11. dxc5 Bxc5 12. Nc3 Nbd7 13. Qd2 h6 14. Bh4 Bb4 15. a3 Bxc3 16. Qxc3 Rc8 17. Qb4 Nc5 18. Rad1 g5 19. Nxg5 hxg5 20. Bxg5 Kg7 21. Re3 Rh8 22. Qf4 Nh5 23. Qd4+ f6 24. Bh4 Kf7 25. b4 {Ramoutar,A (2443)-Siddharth,J (2343) Arandjelovac 2022 0-1 (38)}) ({RR} 10... Be6 11. dxc5 Bxc5 12. Nc3 Nbd7 13. Qd2 h6 14. Bh4 Bb4 15. a3 Bxc3 16. Qxc3 Rc8 17. Qb4 Nc5 18. Rad1 g5 19. Nxg5 hxg5 20. Bxg5 Kg7 21. Re3 Rh8 22. Qf4 Nh5 23. Qd4+ f6 24. Bh4 Kf7 25. b4 {Ramoutar,A (2443)-Siddharth,J (2343) Arandjelovac 2022 0-1 (38)}) 11. Bh4 {[%emt 0:00:08]} Nc6 {[%emt 0:00:08]} 12. Nc3 {[%emt 0:00:18]} Be6 {[%emt 0:00:34]} 13. a3 {[%emt 0:00:22]} c4 {[%emt 0:00:28]} 14. Ne5 {[%emt 0:00:23]} Re8 {[%emt 0:00:00]} 15. b3 {[%emt 0:00:47]} cxb3 {[%emt 0:00:50]} 16. Nxc6 {[%emt 0:00:02]} bxc6 {[%emt 0:00:12]} 17. cxb3 {[%emt 0:00:02]} c5 {[%emt 0:00:23]} 18. Na4 {[%emt 0:00:11]} cxd4 {[%emt 0:00:09]} 19. Qxd4 {[%emt 0:00:03]} Qa5 {[%emt 0:00:26]} 20. Qd1 {[%emt 0:00:37]} Bd7 {[%emt 0:00:08]} 21. Nb2 {[%emt 0:00:16]} Qb6 {[%emt 0:00:15]} 22. Nd3 {[%emt 0:01:04]} a5 {[%emt 0:00:06]} 23. b4 {[%emt 0:00:10]} axb4 {[%emt 0:00:30]} 24. axb4 {[%emt 0:00:01]} Rxa1 {[%emt 0:00:01]} 25. Qxa1 {[%emt 0:00:01]} g5 {[%emt 0:00:28]} 26. Bg3 {[%emt 0:00:04]} Ne4 {[%emt 0:00:03]} 27. Qa5 {[%emt 0:00:28]} Qb7 {[%emt 0:00:01]} 28. Rc1 {[%emt 0:00:09]} Bd8 {[%emt 0:00:05]} 29. Qa1 {[%emt 0:00:03]} Bf5 {[%emt 0:00:16]} 30. Qa4 {[%emt 0:00:08]} Bd7 {[%emt 0:00:01]} 31. Qa2 {[%emt 0:00:02]} Be6 {[%emt 0:00:02]} 32. Nc5 {[%emt 0:00:07]} Qxb4 {[%emt 0:00:03]} 33. Nxe6 {[%emt 0:00:01]} fxe6 {[%emt 0:00:01]} 34. Qa8 {[%emt 0:00:05]} Qe7 {[%emt 0:00:10]} 35. Rc8 {[%emt 0:00:03]} Nxg3 {[%emt 0:00:02]} 36. hxg3 {[%emt 0:00:01]} Kf7 {[%emt 0:00:00]} 37. Qa4 {[%emt 0:00:03]} Bc7 {[%emt 0:00:06]} 38. Rxe8 {[%emt 0:00:02]} Qxe8 {[%emt 0:00:01]} 39. Qc2 {[%emt 0:00:01]} Be5 {[%emt 0:00:04]} 40. Be2 {[%emt 0:00:02]} Kg7 {[%emt 0:00:02]} 41. Qc5 {[%emt 0:00:03]} Qd7 {[%emt 0:00:01]} 42. Bd3 {[%emt 0:00:01]} Qc7 {[%emt 0:00:01]} 43. Qb5 {[%emt 0:00:03]} Bd4 {[%emt 0:00:02]} 44. Qb1 {[%emt 0:00:01]} Qxg3 {[%emt 0:00:02]} 45. Qe1 {[%emt 0:00:03]} Qxd3 {[%emt 0:00:02]} 46. Qxe6 {[%emt 0:00:01]} Qb1+ {[%emt 0:00:01]} 47. Kh2 {[%emt 0:00:00]} Qe4 {[%emt 0:00:02]} 48. Qd7+ {[%emt 0:00:02]} Kf6 {[%emt 0:00:00]} 49. Qd8+ {[%emt 0:00:01]} Qe7 {[%emt 0:00:06]} 50. Qh8+ Kf5 51. g4+ {[%emt 0:00:03]} Ke4 {[%emt 0:00:01]} 52. Qxh6 {[%emt 0:00:03]} Bxf2 {[%emt 0:00:04]} 53. Qg6+ {[%emt 0:00:04]} Kd4 {[%emt 0:00:02]} 54. Kg2 {[%emt 0:00:03]} Qe4+ {[%emt 0:00:01]} 0-1

[Event "GCT Superbet Blitz Poland 2025"]
[Site "Warsaw"]
[Date "2025.04.29"]
[Round "2"]
[White "Duda, Jan-Krzysztof"]
[Black "Vachier-Lagrave, Maxime"]
[Result "1-0"]
[ECO "D02"]
[WhiteElo "2739"]
[BlackElo "2722"]
[Annotator "RC"]
[PlyCount "85"]
[EventDate "2025.??.??"]
[EventType "blitz"]
[TimeControl "300+2"]

1. Nf3 {[%emt 0:00:01]} d5 {[%emt 0:00:02]} 2. d4 {[%emt 0:00:03]} Nf6 {[%emt 0:00:02]} 3. Bf4 {[%emt 0:00:03]} c5 {[%emt 0:00:05]} 4. e3 {[%emt 0:00:01]} Nc6 {[%emt 0:00:01]} 5. c3 {[%emt 0:00:03]} Qb6 {[%emt 0:00:13]} 6. Qc2 {[%emt 0:00:02]} e6 {[%emt 0:00:49]} 7. Nbd2 {[%emt 0:00:11]} Bd7 {[%emt 0:00:01]} 8. Bd3 {[%emt 0:00:15]} Rc8 {[%emt 0:00:02]} 9. Qb1 {[%emt 0:00:07]} Ne7 {[%emt 0:00:30]} ({RR} 9... Nh5 10. Be5 cxd4 11. exd4 Nxe5 12. Nxe5 Nf4 13. O-O Nxd3 14. Qxd3 Bb5 15. Qf3 Qc7 16. Rfe1 Bd6 17. Qh3 O-O 18. Re3 Rce8 19. a4 Ba6 20. Rae1 b6 21. Qh4 f6 22. Nef3 e5 23. dxe5 fxe5 24. Qg5 {Le Tuan Minh (2542)-Volkov,S (2453) chess.com INT 2023 0-1 (77)}) ({RR} 9... h6 10. O-O Be7 11. h3 O-O 12. Rd1 a6 13. a4 Rfd8 14. a5 Qa7 15. Ne5 Be8 16. Ndf3 Nxe5 17. Nxe5 Bb5 18. Bc2 Bd6 19. Qc1 Qb8 20. Qd2 Ne4 21. Qe1 g5 22. Bh2 f6 23. Nf3 Bxh2+ 24. Nxh2 {Le Tuan Minh (2598)-Novosel,L (2353) chess.com INT 2025 1-0 (42)}) 10. a4 {[%emt 0:00:46]} Ng6 {[%emt 0:00:24]} 11. a5 {[%emt 0:00:02]} Qd8 {[%emt 0:00:01]} 12. Bg3 $146 {[%emt 0:00:04]} ({RR} 12. Bg5 Bd6 13. O-O cxd4 14. cxd4 Bb4 15. Nb3 O-O 16. Ne5 Bc6 17. f4 Be7 18. Bxf6 Bxf6 19. Qd1 Qe8 20. Qe2 a6 21. Rac1 Bxe5 22. fxe5 Qe7 23. Nc5 Qd8 24. b4 Qc7 25. Rf3 f6 26. Rh3 f5 {Mitura,V (2235)-Szymanski,M (2335) Karvina 2000 1-0 (33)}) 12... Nh5 {[%emt 0:00:04]} 13. Qd1 {[%emt 0:00:54]} Nxg3 {[%emt 0:00:30]} 14. hxg3 {[%emt 0:00:01]} Bd6 {[%emt 0:00:01]} 15. Nh4 {[%emt 0:00:50]} Nxh4 {[%emt 0:00:11]} 16. Rxh4 {[%emt 0:00:02]} g6 {[%emt 0:00:06]} 17. Nf3 {[%emt 0:00:11]} f5 {[%emt 0:00:27]} 18. Ne5 {[%emt 0:01:05]} Bxe5 {[%emt 0:00:02]} 19. dxe5 {[%emt 0:00:02]} O-O {[%emt 0:00:02]} 20. f4 {[%emt 0:00:10]} d4 {[%emt 0:00:12]} 21. Bc4 {[%emt 0:00:30]} dxc3 {[%emt 0:00:16]} 22. bxc3 {[%emt 0:00:02]} Qe7 {[%emt 0:00:34]} 23. Qb3 {[%emt 0:00:06]} Rb8 {[%emt 0:00:04]} 24. Rd1 {[%emt 0:00:03]} Rfe8 {[%emt 0:00:31]} 25. Rd6 {[%emt 0:00:06]} Kg7 {[%emt 0:00:02]} 26. Kf2 {[%emt 0:00:03]} Bc8 {[%emt 0:00:10]} 27. Rh1 {[%emt 0:00:06]} Qc7 {[%emt 0:00:01]} 28. Qb5 {[%emt 0:00:01]} Re7 {[%emt 0:00:04]} 29. Rhd1 {[%emt 0:00:02]} b6 {[%emt 0:00:06]} 30. a6 {[%emt 0:00:01]} h5 {[%emt 0:00:02]} 31. Kg1 {[%emt 0:00:01]} Kh7 {[%emt 0:00:03]} 32. Kh2 {[%emt 0:00:01]} Rg7 {[%emt 0:00:01]} 33. R1d2 {[%emt 0:00:09]} Qe7 {[%emt 0:00:03]} 34. Qc6 {[%emt 0:00:02]} g5 {[%emt 0:00:05]} 35. Rd8 {[%emt 0:00:02]} gxf4 {[%emt 0:00:12]} 36. exf4 {[%emt 0:00:01]} h4 {[%emt 0:00:05]} 37. g4 {[%emt 0:00:01]} Bxa6 {[%emt 0:00:08]} 38. Rxb8 {[%emt 0:00:03]} Bxc4 {[%emt 0:00:01]} 39. g5 {[%emt 0:00:04]} Kg6 {[%emt 0:00:04]} 40. Rdd8 {[%emt 0:00:02]} Kh5 {[%emt 0:00:01]} 41. Rh8+ {[%emt 0:00:02]} Kg6 {[%emt 0:00:01]} 42. Rh6+ {[%emt 0:00:01]} Kf7 {[%emt 0:00:01]} 43. Rf6+ {[%emt 0:00:01]} 1-0